[Event "58th Akiba Rubinstein D 2022"]
[Site "Polanica-Zdroj"]
[Date "2022.08.19"]
[Round "7.3"]
[White "Straszewski, Tomasz"]
[Black "Gibala, Adam"]
[Result "1/2-1/2"]
[ECO "A40"]
[WhiteElo "1716"]
[BlackElo "1549"]
[Annotator "NA RC"]
[PlyCount "84"]
[EventDate "2022.08.13"]
[EventCountry "POL"]
[SourceTitle "playchess.com"]
[Source "ChessBase"]
[SourceQuality "1"]
[TimeControl "40/5400+30:1800+30"]

1. d4 {[%emt 0:00:09]} Nf6 2. c4 {[%emt 0:00:11]} e6 {[%emt 0:00:08]} 3. g3 {[%emt 0:00:06]} c5 {[%emt 0:00:06]} 4. d5 {[%emt 0:00:19]} exd5 {[%emt 0:00:04]} 5. cxd5 {[%emt 0:00:06]} d6 {[%emt 0:00:10]} 6. Nc3 {[%emt 0:00:05]} g6 {[%emt 0:00:04]} 7. Bg5 {[%emt 0:00:50]} h6 {[%emt 0:00:57]} 8. Bf4 {[%emt 0:00:06]} Nh5 {[%emt 0:01:12]} 9. Qa4+ {[%emt 0:03:25]} Qd7 {[%emt 0:09:40]} 10. Qe4+ {[%emt 0:00:10]} Be7 {[%emt 0:00:58]} 11. Bxd6 {[%emt 0:03:38]} Qxd6 {[%emt 0:03:10]} 12. Nb5 {[%emt 0:00:04]} Qd8 {[%emt 0:00:07]} 13. d6 {[%emt 0:00:10]} Na6 {[%emt 0:16:01]} 14. O-O-O {[%emt 0:04:34]} Be6 {[%emt 0:05:33]} 15. Qxb7 {[%emt 0:06:51]} Bg5+ {[%emt 0:01:05]} 16. f4 {[%emt 0:01:01]} Nxf4 {[%emt 0:23:46]} 17. gxf4 {[%emt 0:00:16]} Bxf4+ {[%emt 0:00:06]} 18. Kb1 {[%emt 0:00:25]} Bxa2+ {[%emt 0:03:42]} 19. Ka1 {[%emt 0:07:51]} Bb3 {[%emt 0:03:19]} 20. Nc7+ {[%emt 0:05:28]} Nxc7 {[%emt 0:00:07]} 21. Qxb3 {[%emt 0:00:04]} Ne6 {[%emt 0:00:42]} 22. Bh3 {[%emt 0:02:55]} Rb8 {[%emt 0:03:35]} 23. Qc3 {[%emt 0:04:54]} O-O {[%emt 0:02:15]} 24. Bxe6 {[%emt 0:00:23]} fxe6 {[%emt 0:00:06]} 25. Nf3 {[%emt 0:00:17]} Kh7 {[%emt 0:10:16]} 26. Rhg1 {[%emt 0:00:27]} Qf6 {[%emt 0:03:07]} 27. Qa3 {[%emt 0:04:15]} Rb7 28. e4 {[%emt 0:08:03]} Rfb8 {[%emt 0:03:54]} 29. Rg2 {[%emt 0:02:15]} Rb3 {[%emt 0:02:13]} 30. Qxc5 {[%emt 0:01:38]} Kh8 {[%emt 0:04:55]} 31. e5 {[%emt 0:02:05]} Qd8 {[%emt 0:01:16]} 32. Nd4 {[%emt 0:00:22]} R3b6 {[%emt 0:01:12]} 33. Nxe6 {[%emt 0:01:58]} Qd7 {[%emt 0:00:21]} 34. Qd5 {[%emt 0:02:09]} Qa4+ {[%emt 0:01:33]} 35. Kb1 {[%emt 0:00:16]} Rb5 {[%emt 0:00:40]} 36. Qd4 {[%emt 0:02:12]} Rb4 {[%emt 0:00:57]} 37. Qd5 {[%emt 0:03:25]} R4b5 {[%emt 0:00:21]} 38. Rd4 {[%emt 0:01:31]} Rxd5 {[%emt 0:01:08]} 39. Rxa4 {[%emt 0:00:01]} Bxe5 {[%emt 0:00:24]} 40. Rxa7 {[%emt 0:01:05]} Rxd6 {[%emt 0:00:06]} 41. Rxg6 {[%emt 0:32:06]} Rxb2+ {[%emt 0:30:04]} 42. Kc1 {[%emt 0:00:07]} Rc6+ 1/2-1/2

[Event "58th Akiba Rubinstein D 2022"]
[Site "Polanica-Zdroj"]
[Date "2022.08.19"]
[Round "7.4"]
[White "Kryzia, Wiktor"]
[Black "Galuszka, Kamil"]
[Result "1/2-1/2"]
[ECO "C10"]
[WhiteElo "1764"]
[BlackElo "1976"]
[Annotator "TA"]
[PlyCount "102"]
[EventDate "2022.08.13"]
[EventCountry "POL"]
[SourceTitle "playchess.com"]
[Source "ChessBase"]
[SourceQuality "1"]
[TimeControl "40/5400+30:1800+30"]

{[%evp 13,102,18,35,35,37,18,35,39,38,39,39,39,55,35,27,17,6,22,15,2,7,4,4,5,5,0,0,0,7,0,12,0,15,0,5,-12,-9,-45,-39,-39,-29,-83,-85,-81,-45,-45,-45,-45,-45,-45,-45,-45,-45,-45,-39,-47,-28,-52,-45,-45,-27,-45,-37,-8,0,-28,-28,-97,-104,-97,-84,-118,-81,-118,0,0,0,0,0,-153,-153,-145,-8,-8,-8,-8,-8,-8,-8,-16,-16]} 1. e4 {[%emt 0:00:03]} e6 {[%emt 0:00:01]} 2. d4 {[%emt 0:00:08]} d5 {[%emt 0:00:01]} 3. Nd2 {[%emt 0:01:05]} dxe4 {[%emt 0:00:26]} 4. Nxe4 {[%emt 0:00:07]} Nd7 {[%emt 0:00:03]} 5. Nf3 {[%emt 0:00:16]} Ngf6 {[%emt 0:00:19]} 6. Nxf6+ {[%emt 0:00:32]} Nxf6 {[%emt 0:00:02]} 7. Bd3 {[%emt 0:00:14] 7.c3 injects fresh life into this line.} Bd6 {[%emt 0:04:19]} 8. O-O {[%emt 0:02:45] C10: French with 3 Nc3: Unusual Black 3rd moves and 3...dxe4.} O-O {[%emt 0:06:38]} 9. c3 {[%emt 0:05:33]} b6 {[%emt 0:04:58]} 10. Bg5 {[%emt 0:04:53] White is slightly better.} Bb7 {[%emt 0:03:50]} 11. Qe2 {[%emt 0:05:25]} Bxf3 {[%emt 0:10:48]} 12. Qxf3 {[%emt 0:00:16]} Be7 {[%emt 0:00:03]} 13. Rfe1 {[%emt 0:05:54]} Qd5 {[%emt 0:10:44] [#]} 14. Be4 $146 {[%emt 0:07:58]} ({Predecessor:} 14. Qe3 Rad8 15. f4 c5 16. Qh3 g6 17. Qh4 Kg7 18. Bh6+ Kg8 19. Bxf8 Rxf8 20. Rad1 Qxa2 21. Qf2 cxd4 22. cxd4 {½-½ (54) Redondo Flores,D (2008)-Narbon Lainez,R (1920) Valencia 2009}) 14... Nxe4 {[%emt 0:02:29]} 15. Bxe7 {[%emt 0:01:50]} Rfe8 {[%emt 0:04:54][%cal Bf8e8,Be8e7,Be7d7][%mdl 32]} 16. Qxe4 {[%emt 0:01:14]} (16. Bh4 {is more complex.} Nd6 17. Qg4 Qf5 18. h3) 16... Qxe4 {[%emt 0:00:18]} 17. Rxe4 {[%emt 0:00:02]} Rxe7 $11 {[%emt 0:00:05][%mdl 4096] Endgame KRR-KRR} 18. Rae1 {[%emt 0:12:07]} Rd7 {[%emt 0:02:07]} 19. f4 {[%emt 0:03:18][%cal Of4f5]} g6 {[%emt 0:03:25]} 20. g4 {[%emt 0:06:30]} Kg7 {[%emt 0:02:07]} 21. Re5 {[%emt 0:04:20]} Rad8 {[%emt 0:08:09]} 22. b4 {[%emt 0:00:47]} Rd5 {[%emt 0:02:54]} 23. Rxd5 {[%emt 0:14:26]} Rxd5 {[%emt 0:00:07] KR-KR} 24. Re5 {[%emt 0:00:08]} Rd6 {[%emt 0:08:46]} 25. g5 {[%emt 0:08:34]} Rc6 {[%emt 0:03:00]} 26. Re3 {[%emt 0:00:47]} Rc4 {[%emt 0:00:29]} 27. b5 {[%emt 0:02:35]} (27. Kf2 $11) 27... Ra4 {[%emt 0:07:08]} 28. Re2 {[%emt 0:00:02]} Kf8 {[%emt 0:01:23]} 29. Kf2 {[%emt 0:01:35]} Ra3 {[%emt 0:00:47]} 30. Rc2 $1 {[%emt 0:00:08]} Ke7 {[%emt 0:00:32]} 31. Ke3 {[%emt 0:00:38]} a6 {[%emt 0:01:38]} 32. bxa6 {[%emt 0:01:51]} Rxa6 {[%emt 0:00:24]} 33. Kd3 {[%emt 0:06:47]} Ra8 {[%emt 0:01:43]} 34. Kc4 {[%emt 0:01:26]} Kd6 {[%emt 0:00:12]} 35. Rb2 {[%emt 0:00:55]} h5 {[%emt 0:01:30][%cal Ob6b5]} 36. h4 {[%emt 0:02:24]} Ra5 {[%emt 0:01:20]} 37. Kb4 {[%emt 0:00:47]} Rf5 {[%emt 0:02:29]} 38. Rf2 {[%emt 0:00:17]} c6 {[%emt 0:00:28]} 39. a4 {[%emt 0:00:14] Prevents Rb5+.} Kd5 {[%emt 0:01:04]} 40. Rf1 {[%emt 0:01:03]} (40. Ka3 $1 $11 {remains equal.}) 40... Ke4 $17 {[%emt 0:01:40]} 41. c4 {[%emt 0:30:35]} Kxd4 {[%emt 0:36:19] [#] White must now prevent ...Ke3.} (41... Rxf4 $2 42. Rxf4+ Kxf4 43. c5 bxc5+ 44. Kxc5 $18) 42. Rd1+ {[%emt 0:00:13]} Ke4 {[%emt 0:00:06]} 43. Rd6 {[%emt 0:00:43]} Rc5 {[%emt 0:00:01]} (43... Kxf4 $17 {Threatens to win with ...e5.} 44. Rxc6 e5 45. Rxb6 e4) 44. Rd7 $11 {[%emt 0:00:21]} Kxf4 {[%emt 0:00:25]} 45. Rxf7+ {[%emt 0:00:01]} Kg4 {[%emt 0:00:19]} 46. Rf6 $2 {[%emt 0:00:32]} ({White has to play} 46. Rb7 $11) 46... Kxh4 {[%emt 0:01:17]} 47. Rxg6 {[%emt 0:00:01]} e5 {[%emt 0:00:08]} ({Inferior is} 47... Rxg5 48. Rxe6 Kg4 49. Rxc6 $11) (47... Re5 $17 {And now ...Kg3 would win.} 48. Rg8 Kg4) 48. a5 $1 {[%emt 0:00:20] The position is equal.} Rxa5 {[%emt 0:00:12]} 49. Rxc6 {[%emt 0:00:01]} Kxg5 {[%emt 0:00:30]} 50. Rxb6 {[%emt 0:00:16]} Ra1 {[%emt 0:00:00] [#] Strongly threatening ...h4.} 51. Re6 {[%emt 0:00:32]} Kf5 {[%emt 0:00:49] Weighted Error Value: White=0.15 (very precise) /Black=0.14 (very precise)} 1/2-1/2

[Event "58th Akiba Rubinstein D 2022"]
[Site "Polanica-Zdroj"]
[Date "2022.08.19"]
[Round "7.5"]
[White "Zerebiec, Maurycy"]
[Black "Mareau, Timothe"]
[Result "1/2-1/2"]
[ECO "A10"]
[WhiteElo "1915"]
[BlackElo "1590"]
[Annotator "NA RC"]
[PlyCount "106"]
[EventDate "2022.08.13"]
[EventCountry "POL"]
[SourceTitle "playchess.com"]
[Source "ChessBase"]
[SourceQuality "1"]
[TimeControl "40/5400+30:1800+30"]

1. c4 {[%emt 0:03:12]} b6 {[%emt 0:00:08]} 2. Nc3 {[%emt 0:00:06]} Bb7 {[%emt 0:00:08]} 3. e4 {[%emt 0:00:02]} e6 {[%emt 0:00:10]} 4. g3 {[%emt 0:00:02]} Bc5 {[%emt 0:01:22]} 5. Nge2 {[%emt 0:00:34]} f5 {[%emt 0:00:32]} 6. Bg2 {[%emt 0:00:12]} Nf6 {[%emt 0:00:26]} 7. O-O {[%emt 0:00:27]} (7. d4 $14 Bb4 8. O-O) 7... O-O {[%emt 0:00:33]} (7... Nxe4 $11 8. d4 Nxc3 9. Nxc3 (9. bxc3 Bxg2 10. Kxg2 Bd6 $15) 9... Bxg2 10. Kxg2 Bd6) 8. d4 {[%emt 0:00:20]} Bb4 {[%emt 0:00:34]} 9. Bg5 {[%emt 0:04:16]} Bxc3 {[%emt 0:05:25]} 10. Nxc3 {[%emt 0:01:40]} ({Don't play} 10. bxc3 $6 Bxe4 11. Bxe4 fxe4 $11) 10... Qc8 {[%emt 0:04:34]} 11. exf5 {[%emt 0:06:31]} Bxg2 {[%emt 0:00:30]} 12. Kxg2 {[%emt 0:00:02]} exf5 {[%emt 0:01:50]} 13. Bxf6 {[%emt 0:00:26]} Rxf6 {[%emt 0:00:46]} 14. Nd5 {[%emt 0:00:03]} Rf7 {[%emt 0:00:31]} 15. Re1 {[%emt 0:00:25]} Nc6 {[%emt 0:00:46]} 16. b4 {[%emt 0:00:31]} Qb7 {[%emt 0:01:07]} 17. Qf3 {[%emt 0:00:07]} Kh8 {[%emt 0:01:28]} 18. Nf4 {[%emt 0:06:27]} Raf8 {[%emt 0:02:30]} 19. b5 {[%emt 0:03:45]} Na5 {[%emt 0:00:27]} 20. Qxb7 {[%emt 0:07:36]} Nxb7 {[%emt 0:01:27]} 21. h4 {[%emt 0:00:52]} g6 {[%emt 0:08:11]} 22. Rac1 {[%emt 0:01:12]} d6 {[%emt 0:01:57]} 23. Kf3 {[%emt 0:01:53]} Ra8 {[%emt 0:01:27]} 24. Re3 {[%emt 0:00:54]} a6 {[%emt 0:02:38]} 25. Ra3 {[%emt 0:00:14]} (25. h5 $18) 25... a5 {[%emt 0:03:09]} (25... Na5 $16 26. Re3 Kg7) 26. Re3 {[%emt 0:01:01]} a4 {[%emt 0:02:20]} 27. Rcc3 {[%emt 0:05:07]} Na5 {[%emt 0:00:58]} 28. Nd5 {[%emt 0:00:18]} Rb8 {[%emt 0:07:11]} 29. Nb4 {[%emt 0:01:23]} (29. Re6 $18) 29... Kg7 {[%emt 0:00:36]} 30. Re6 {[%emt 0:00:28]} Rd7 {[%emt 0:02:53]} 31. Nc6 {[%emt 0:02:36]} ({White should play} 31. Nd5 $16) 31... Nxc6 {[%emt 0:04:44]} 32. bxc6 {[%emt 0:00:02]} Rf7 {[%emt 0:00:36]} 33. Ra3 {[%emt 0:00:39]} Ra8 {[%emt 0:00:41]} 34. Re2 {[%emt 0:02:54]} Ra5 {[%emt 0:04:41]} 35. Rb2 {[%emt 0:02:43]} ({White should play} 35. Re8 $16) 35... Rf8 {[%emt 0:03:06]} 36. Rb4 {[%emt 0:01:12]} Rfa8 {[%emt 0:00:09]} 37. Ke2 {[%emt 0:00:43]} Kf6 {[%emt 0:01:25]} (37... d5 $1 $11 {remains equal.}) 38. Kd2 {[%emt 0:00:18]} d5 $1 {[%emt 0:02:07]} 39. cxd5 {[%emt 0:00:31]} Ke7 {[%emt 0:00:16]} 40. Re3+ $1 {[%emt 0:02:05]} Kd6 {[%emt 0:00:35] [#]} 41. Re6+ $1 {[%emt 0:30:12]} Kxd5 {[%emt 0:30:13]} 42. Re7 $16 {[%emt 0:00:03]} Rc8 {[%emt 0:09:38]} 43. Rxh7 {[%emt 0:00:25]} Kxc6 {[%emt 0:00:04]} 44. Rc4+ {[%emt 0:00:46]} Kd5 {[%emt 0:01:48]} 45. Rcxc7 {[%emt 0:00:04]} Rxc7 {[%emt 0:00:10]} 46. Rxc7 {[%emt 0:00:04]} Kxd4 {[%emt 0:00:15]} 47. Rc6 {[%emt 0:11:38]} Rb5 {[%emt 0:00:39]} 48. f3 {[%emt 0:09:32]} Rb2+ {[%emt 0:03:19]} 49. Rc2 {[%emt 0:00:01]} Rb1 {[%emt 0:00:17]} 50. Rc1 {[%emt 0:00:47]} Rb2+ {[%emt 0:00:24]} 51. Rc2 {[%emt 0:00:01]} Rb1 {[%emt 0:00:09]} 52. Rc1 {[%emt 0:00:34]} Rb2+ {[%emt 0:00:07]} 53. Rc2 {[%emt 0:00:02]} Ke5 1/2-1/2

[Event "58th Akiba Rubinstein D 2022"]
[Site "Polanica-Zdroj"]
[Date "2022.08.19"]
[Round "7.6"]
[White "Wilgosz, Jan"]
[Black "Gbiorczyk, Mikolaj"]
[Result "1-0"]
[ECO "B06"]
[WhiteElo "1597"]
[BlackElo "1781"]
[Annotator "NA RC"]
[PlyCount "112"]
[EventDate "2022.08.13"]
[EventCountry "POL"]
[SourceTitle "playchess.com"]
[Source "ChessBase"]
[SourceQuality "1"]
[TimeControl "40/5400+30:1800+30"]

1. e4 {[%emt 0:05:54]} d6 {[%emt 0:00:04]} 2. d4 {[%emt 0:00:10]} g6 {[%emt 0:00:07]} 3. Nc3 {[%emt 0:00:22]} Bg7 {[%emt 0:00:07]} 4. f4 {[%emt 0:00:26]} a6 {[%emt 0:00:09]} 5. Nf3 {[%emt 0:00:07]} b5 {[%emt 0:00:06]} 6. Bd3 {[%emt 0:00:20]} Bb7 {[%emt 0:00:07]} 7. Qe2 {[%emt 0:01:26]} e6 {[%emt 0:16:52]} 8. f5 {[%emt 0:14:53]} b4 {[%emt 0:09:12]} 9. Nd1 {[%emt 0:04:10]} exf5 {[%emt 0:06:43]} 10. Bg5 {[%emt 0:11:06]} Bf6 {[%emt 0:13:53]} 11. exf5+ {[%emt 0:09:00]} Kf8 {[%emt 0:01:02]} 12. Bxf6 {[%emt 0:03:59]} Nxf6 {[%emt 0:04:48]} 13. O-O {[%emt 0:04:09]} Nbd7 {[%emt 0:05:22]} 14. Qd2 {[%emt 0:04:47]} Kg7 {[%emt 0:00:49]} 15. Qxb4 {[%emt 0:01:59]} Rb8 {[%emt 0:01:38]} 16. Qd2 {[%emt 0:02:20]} c5 {[%emt 0:08:24]} 17. c3 {[%emt 0:05:52]} Qb6 {[%emt 0:02:03]} 18. Qf4 {[%emt 0:03:13]} Nd5 {[%emt 0:04:29]} 19. Qh4 {[%emt 0:03:30]} N7f6 {[%emt 0:05:04]} 20. Bc4 {[%emt 0:09:01]} Rbe8 {[%emt 0:03:32]} 21. Ng5 {[%emt 0:05:18]} Re7 {[%emt 0:03:28]} 22. Bxd5 {[%emt 0:03:48]} Bxd5 {[%emt 0:00:43]} 23. Qf2 {[%emt 0:02:52]} Rf8 {[%emt 0:01:14]} 24. Ne3 {[%emt 0:00:30]} Be4 {[%emt 0:01:16]} 25. Nxe4 {[%emt 0:00:42]} Rxe4 {[%emt 0:00:04]} 26. fxg6 {[%emt 0:00:46]} fxg6 {[%emt 0:00:19]} 27. Nd5 {[%emt 0:00:54]} Qd8 {[%emt 0:00:03]} 28. Nxf6 {[%emt 0:00:12]} Rxf6 {[%emt 0:00:07]} 29. Qxf6+ {[%emt 0:00:14]} Qxf6 {[%emt 0:00:02]} 30. Rxf6 {[%emt 0:00:09]} Kxf6 {[%emt 0:00:02]} 31. dxc5 {[%emt 0:00:44]} dxc5 {[%emt 0:00:02]} 32. Kf2 {[%emt 0:00:27]} Re6 {[%emt 0:02:36]} 33. Rd1 {[%emt 0:00:53]} Rb6 {[%emt 0:00:40]} 34. b3 {[%emt 0:00:48]} a5 {[%emt 0:01:46]} 35. Rd5 {[%emt 0:00:58]} a4 {[%emt 0:00:14]} 36. Rxc5 {[%emt 0:01:04]} axb3 {[%emt 0:00:01]} 37. axb3 {[%emt 0:00:11]} Rxb3 {[%emt 0:00:05]} 38. Rc7 {[%emt 0:00:28]} Ke5 {[%emt 0:01:25]} 39. Kg3 {[%emt 0:00:37]} Kf5 {[%emt 0:00:35]} 40. Kf3 {[%emt 0:00:29]} h5 41. Rc5+ {[%emt 0:30:21]} Ke6 {[%emt 0:32:17]} 42. Kf4 {[%emt 0:00:39]} Kd6 {[%emt 0:00:48]} 43. Rg5 {[%emt 0:00:43]} Rxc3 {[%emt 0:00:40]} 44. Rxg6+ {[%emt 0:00:07]} Ke7 {[%emt 0:00:04]} 45. Rg5 {[%emt 0:00:43]} h4 {[%emt 0:01:24]} 46. Kg4 {[%emt 0:00:42]} Kf6 {[%emt 0:03:04]} 47. Kxh4 {[%emt 0:00:26]} Rc4+ {[%emt 0:00:29]} 48. Rg4 {[%emt 0:00:25]} Rc8 {[%emt 0:00:15]} 49. Kg3 {[%emt 0:01:03]} Kf5 {[%emt 0:00:09]} 50. Rf4+ {[%emt 0:00:24]} Kg5 {[%emt 0:00:19]} 51. h4+ {[%emt 0:00:32]} Kh5 {[%emt 0:00:05]} 52. Kh3 {[%emt 0:00:25]} Rc3+ {[%emt 0:00:25]} 53. g3 {[%emt 0:00:17]} Ra3 {[%emt 0:00:13]} 54. Rf5+ {[%emt 0:00:29]} Kg6 {[%emt 0:00:07]} 55. Rg5+ {[%emt 0:00:20]} Kh6 {[%emt 0:00:06]} 56. Rb5 {[%emt 0:00:58]} Rc3 {[%emt 0:00:11]} 1-0

[Event "58th Akiba Rubinstein D 2022"]
[Site "Polanica-Zdroj"]
[Date "2022.08.19"]
[Round "7.7"]
[White "Penza, Denis"]
[Black "Klisowski, Bartosz"]
[Result "1/2-1/2"]
[ECO "B24"]
[WhiteElo "1836"]
[BlackElo "1595"]
[Annotator "NA RC"]
[PlyCount "42"]
[EventDate "2022.08.13"]
[EventCountry "POL"]
[SourceTitle "playchess.com"]
[Source "ChessBase"]
[SourceQuality "1"]
[TimeControl "40/5400+30:1800+30"]

1. e4 c5 2. Nc3 Nc6 3. Bb5 Nd4 4. Bc4 g6 5. Nf3 Bg7 6. Nxd4 cxd4 7. Qf3 e6 8. Nb5 Be5 9. Qa3 d5 10. exd5 exd5 11. Be2 Ne7 12. c3 dxc3 13. dxc3 O-O 14. Bg5 f6 15. Bd2 Bd7 16. O-O Nf5 17. Qb3 Bc6 18. Bg4 Ng7 19. Nd4 f5 20. Bf3 Bxd4 $11 21. cxd4 Ne6 1/2-1/2

[Event "58th Akiba Rubinstein D 2022"]
[Site "Polanica-Zdroj"]
[Date "2022.08.19"]
[Round "7.8"]
[White "Liskiewicz, Jakub"]
[Black "Butkiewicz, Jan"]
[Result "1-0"]
[ECO "D53"]
[WhiteElo "1910"]
[BlackElo "1613"]
[Annotator "NA RC"]
[PlyCount "89"]
[EventDate "2022.08.13"]
[EventCountry "POL"]
[SourceTitle "playchess.com"]
[Source "ChessBase"]
[SourceQuality "1"]
[TimeControl "40/5400+30:1800+30"]

1. d4 {[%emt 0:00:03]} Nf6 {[%emt 0:00:04]} 2. c4 {[%emt 0:00:07]} e6 {[%emt 0:00:04]} 3. Nc3 {[%emt 0:00:06]} d5 {[%emt 0:00:07]} 4. Bg5 {[%emt 0:00:11]} Be7 {[%emt 0:00:04]} 5. e3 {[%emt 0:00:09]} O-O {[%emt 0:00:10]} 6. cxd5 {[%emt 0:00:18]} exd5 {[%emt 0:02:18]} 7. Bd3 {[%emt 0:03:09]} h6 {[%emt 0:01:08]} 8. Bf4 {[%emt 0:01:29]} Bd6 {[%emt 0:08:08] 8...c5 is setting a new trend.} 9. Nge2 {[%emt 0:02:58]} Bxf4 {[%emt 0:01:18]} 10. Nxf4 {[%emt 0:00:09]} c6 {[%emt 0:01:12]} 11. Qc2 {[%emt 0:04:04] [#]} a5 $146 {[%emt 0:05:55]} ({Predecessor:} 11... Re8 12. O-O Qd6 13. a3 Nbd7 14. Rad1 a6 15. Bf5 Nf8 16. Rfe1 Bxf5 17. Qxf5 g6 {1-0 (43) Tisaj,D (2232)-Pultinevicius,P (2477) Chess.com INT 2019}) 12. O-O {[%emt 0:02:23]} b5 {[%emt 0:07:25]} 13. a4 {[%emt 0:03:06]} b4 {[%emt 0:00:30]} 14. Nb1 {[%emt 0:01:56]} Qb6 {[%emt 0:07:40]} 15. Nd2 {[%emt 0:02:14]} Ba6 {[%emt 0:15:37]} 16. Rac1 {[%emt 0:01:35]} Bxd3 {[%emt 0:00:58]} 17. Nxd3 {[%emt 0:00:22]} Rc8 {[%emt 0:00:26]} 18. Nb3 {[%emt 0:15:23]} Nfd7 {[%emt 0:04:46]} (18... Rc7 $14 {should be considered.}) 19. Ndc5 {[%emt 0:08:18]} (19. f3 $16) 19... Nxc5 {[%emt 0:02:03]} 20. Nxc5 {[%emt 0:01:11]} Na6 {[%emt 0:01:57]} 21. Qf5 $14 {[%emt 0:03:58]} Nxc5 {[%emt 0:01:35]} 22. Rxc5 {[%emt 0:00:09]} b3 {[%emt 0:01:54]} (22... Re8 $14) 23. Qd3 {[%emt 0:05:58]} Qa6 {[%emt 0:12:42]} 24. Qxb3 {[%emt 0:07:29]} Rab8 {[%emt 0:00:51]} 25. Qc2 {[%emt 0:00:21]} Qb6 {[%emt 0:04:12]} 26. Rc1 {[%emt 0:01:17]} Qxb2 {[%emt 0:00:39]} 27. Qxb2 {[%emt 0:00:10]} Rxb2 {[%emt 0:00:46]} 28. Rxa5 {[%emt 0:00:25]} Rcb8 {[%emt 0:01:14]} 29. Rac5 {[%emt 0:03:03]} Ra2 {[%emt 0:02:25]} 30. Rxc6 {[%emt 0:00:47]} Rxa4 {[%emt 0:00:18]} 31. Rd6 {[%emt 0:01:16]} Rc4 {[%emt 0:00:56]} 32. Rf1 {[%emt 0:02:21]} Rb5 {[%emt 0:01:01]} 33. Rd8+ {[%emt 0:00:08]} Kh7 {[%emt 0:00:09]} 34. g4 {[%emt 0:01:47]} Rc2 {[%emt 0:04:11]} 35. Kg2 {[%emt 0:02:21]} g5 {[%emt 0:01:14]} 36. Kg3 {[%emt 0:02:14]} Kg6 {[%emt 0:03:04]} 37. Re8 {[%emt 0:01:34]} Rc6 {[%emt 0:05:03]} 38. Ra1 {[%emt 0:01:24]} Rc2 {[%emt 0:00:47]} 39. Re5 {[%emt 0:00:34]} Rc6 {[%emt 0:02:03]} 40. Ra8 {[%emt 0:01:23]} Rf6 {[%emt 0:00:13]} 41. Rg8+ {[%emt 0:31:41]} Kh7 {[%emt 0:30:16]} 42. Ree8 {[%emt 0:00:21]} Rg6 {[%emt 0:00:23]} 43. Rh8+ {[%emt 0:00:43]} Kg7 {[%emt 0:00:07]} 44. Reg8+ {[%emt 0:00:17]} Kf6 {[%emt 0:00:17]} 45. Rd8 {[%emt 0:00:31]} 1-0

[Event "58th Akiba Rubinstein D 2022"]
[Site "Polanica-Zdroj"]
[Date "2022.08.19"]
[Round "7.9"]
[White "Wilgosz, Szczepan"]
[Black "Markiewicz, Czeslaw"]
[Result "1/2-1/2"]
[ECO "C99"]
[WhiteElo "1530"]
[BlackElo "1750"]
[Annotator "NA RC"]
[PlyCount "67"]
[EventDate "2022.08.13"]
[EventCountry "POL"]
[SourceTitle "playchess.com"]
[Source "ChessBase"]
[SourceQuality "1"]
[TimeControl "40/5400+30:1800+30"]

1. e4 {[%emt 0:00:03]} e5 {[%emt 0:00:11]} 2. Nf3 {[%emt 0:00:29]} Nc6 {[%emt 0:00:13]} 3. Bb5 {[%emt 0:00:59]} a6 {[%emt 0:00:07]} 4. Ba4 {[%emt 0:00:09]} Nf6 {[%emt 0:00:08]} 5. O-O {[%emt 0:00:12]} Be7 {[%emt 0:00:41]} 6. Re1 {[%emt 0:00:23]} b5 {[%emt 0:00:16]} 7. Bb3 {[%emt 0:00:08]} d6 {[%emt 0:00:18]} 8. c3 {[%emt 0:00:19]} O-O {[%emt 0:00:32]} 9. h3 {[%emt 0:00:33]} Na5 {[%emt 0:00:17]} 10. Bc2 {[%emt 0:00:16]} c5 {[%emt 0:00:26]} 11. d4 {[%emt 0:00:25]} Qc7 {[%emt 0:00:51]} 12. Nbd2 {[%emt 0:00:54]} cxd4 {[%emt 0:01:29]} 13. cxd4 {[%emt 0:00:42]} Bd7 {[%emt 0:01:18]} 14. Nf1 {[%emt 0:11:15]} Rfc8 {[%emt 0:00:37]} 15. Bd3 {[%emt 0:04:13]} Nc6 {[%emt 0:00:40]} 16. dxe5 {[%emt 0:01:40]} dxe5 {[%emt 0:00:32]} 17. a3 {[%emt 0:02:51]} b4 {[%emt 0:10:17]} 18. Bg5 {[%emt 0:06:21]} h6 {[%emt 0:03:44]} 19. Bxf6 {[%emt 0:04:33]} Bxf6 {[%emt 0:00:06]} 20. Ne3 {[%emt 0:00:26]} bxa3 {[%emt 0:03:56]} 21. Nd5 {[%emt 0:05:29]} Qd8 {[%emt 0:04:57]} 22. Rxa3 {[%emt 0:03:38]} a5 {[%emt 0:02:22]} 23. Bb5 {[%emt 0:13:13]} Be6 {[%emt 0:01:50]} 24. Rd3 {[%emt 0:01:13]} Bxd5 {[%emt 0:02:04]} 25. Rxd5 {[%emt 0:00:31]} Qb6 {[%emt 0:00:43]} 26. Bxc6 {[%emt 0:07:28]} Rxc6 {[%emt 0:00:37]} 27. Qd2 {[%emt 0:05:18]} Rac8 {[%emt 0:19:22]} 28. Qxa5 {[%emt 0:08:45]} Qxb2 {[%emt 0:00:39]} 29. Nxe5 {[%emt 0:00:52]} Bxe5 {[%emt 0:01:53]} 30. Rxe5 {[%emt 0:00:12]} Rc1 {[%emt 0:05:07]} 31. Rd5 {[%emt 0:02:22]} Qb1 {[%emt 0:03:28]} 32. Rd8+ Rxd8 33. Qxd8+ Kh7 34. Qa5 1/2-1/2